bitfinex-derivatives/quotes_BTCF0:USTF0_20250329
["timestamp","ask_amount","ask_price","bid_price","bid_amount"]
[1743229311396,0.4420326,83761.0,83760.0,0.121314]
[1743229311888,0.4320326,83761.0,83760.0,0.121314]
[1743229312096,0.1820326,83761.0,83760.0,0.121314]
[1743229312288,0.2920326,83761.0,83760.0,0.121314]
[1743229312596,0.1820326,83761.0,83760.0,0.121314]
[1743229312787,0.2920326,83761.0,83760.0,0.121314]
[1743229312984,0.1820326,83761.0,83760.0,0.121314]
[1743229313192,0.2920326,83761.0,83760.0,0.121314]
[1743229313398,0.4120326,83761.0,83760.0,0.121314]
[1743229313899,0.2820326,83761.0,83760.0,0.121314]
[1743229314398,0.3720326,83761.0,83760.0,0.121314]
[1743229315494,0.1820326,83761.0,83760.0,0.121314]
[1743229315698,0.2820326,83761.0,83760.0,0.121314]
[1743229316793,0.2820326,83761.0,83760.0,0.00188]
[1743229318695,0.2820326,83761.0,83757.0,0.24460471]
[1743229318696,0.1194369,83758.0,83757.0,0.21460471]
[1743229318996,0.3707169,83758.0,83757.0,0.21588471]
[1743229319198,0.5207169,83758.0,83757.0,0.21588471]
[1743229320394,0.3707169,83758.0,83757.0,0.21588471]
[1743229322898,0.3707169,83758.0,83757.0,0.00128]
[1743229323098,0.1194412,83755.0,83754.0,0.00017915]
[1743229323299,0.35004121,83755.0,83754.0,0.00017915]
[1743229324291,0.35004121,83755.0,83754.0,0.00117915]
[1743229324799,0.35004121,83755.0,83754.0,0.12162175]
[1743229325097,0.35004121,83755.0,83754.0,0.00217915]
[1743229325602,0.35004121,83755.0,83754.0,0.06553915]
[1743229326304,0.35004121,83755.0,83754.0,0.06417915]
[1743229328398,0.35004121,83755.0,83754.0,0.03387915]
[1743229329407,0.35004121,83755.0,83754.0,0.03515915]
[1743229331311,0.35004121,83755.0,83754.0,0.03387915]
[1743229331699,0.35004121,83755.0,83754.0,0.06467915]
[1743229333202,0.35004121,83755.0,83754.0,0.06603915]
[1743229333404,0.35004121,83755.0,83754.0,0.21558175]
[1743229333910,0.12004121,83755.0,83754.0,0.21558175]
[1743229334909,0.23004121,83755.0,83754.0,0.21558175]
[1743229335108,0.12004121,83755.0,83754.0,0.21558175]
[1743229336715,0.12004121,83755.0,83754.0,0.09613915]
[1743229336901,0.34004121,83755.0,83754.0,0.09613915]
[1743229337101,0.12004121,83755.0,83754.0,0.09613915]
[1743229337307,0.33004121,83755.0,83754.0,0.09613915]
[1743229337613,0.32004121,83755.0,83754.0,0.09613915]
[1743229338112,0.35004121,83755.0,83754.0,0.09613915]
[1743229338618,0.12004121,83755.0,83754.0,0.09613915]
[1743229339114,0.39004121,83755.0,83754.0,0.09613915]
[1743229339312,0.12004121,83755.0,83754.0,0.21558175]
[1743229339611,0.12004121,83755.0,83754.0,0.09613915]
[1743229339814,0.40004121,83755.0,83754.0,0.09613915]
[1743229340011,0.12004121,83755.0,83754.0,0.09613915]
[1743229340508,0.23004121,83755.0,83754.0,0.09613915]
[1743229340710,0.12004121,83755.0,83754.0,0.21558175]
[1743229341306,0.36004121,83755.0,83754.0,0.21558175]
[1743229341505,0.12004121,83755.0,83754.0,0.21558175]
[1743229342133,0.12004121,83755.0,83754.0,0.09613915]
[1743229342614,0.37004121,83755.0,83754.0,0.21558175]
[1743229342813,0.38004121,83755.0,83754.0,0.21558175]
[1743229343003,0.12004121,83755.0,83754.0,0.21558175]
[1743229343205,0.36004121,83755.0,83754.0,0.21558175]
[1743229343406,0.39004121,83755.0,83754.0,0.21558175]
[1743229343605,0.35004121,83755.0,83754.0,0.21558175]
[1743229343916,0.23004121,83755.0,83754.0,0.21558175]
[1743229344618,0.12004121,83755.0,83754.0,0.06533915]
[1743229344813,0.82544121,83755.0,83754.0,0.03523915]
[1743229345005,0.82544121,83755.0,83754.0,0.00345915]
[1743229345206,0.82544121,83755.0,83754.0,0.00217915]
[1743229346020,0.82544121,83755.0,83751.0,0.21460471]
[1743229346021,0.1194455,83752.0,83751.0,0.21460471]
[1743229346208,0.3707255,83752.0,83751.0,0.21592471]
[1743229347106,0.3707255,83752.0,83751.0,0.21792471]
[1743229347906,0.3707255,83752.0,83751.0,0.21892471]
[1743229349316,0.42880061,83752.0,83751.0,0.00432]
[1743229349514,0.42880061,83752.0,83751.0,0.003]
[1743229350515,1.15040061,83752.0,83751.0,0.003]
[1743229351313,0.1194512,83748.0,83747.0,0.0307]
[1743229351514,0.48793121,83748.0,83747.0,0.0307]
[1743229352719,0.48793121,83748.0,83747.0,0.0327]
[1743229353117,0.48793121,83748.0,83747.0,0.0347]
[1743229353422,0.84873121,83748.0,83747.0,0.0347]
[1743229354619,0.85781943,83748.0,83747.0,0.0347]
[1743229355523,0.119474,83732.0,83720.0,0.05]
[1743229355715,0.119474,83732.0,83731.0,0.21588471]
[1743229355716,0.879754,83732.0,83731.0,0.21588471]
[1743229356824,0.910954,83732.0,83731.0,0.00128]
[1743229357024,0.910954,83732.0,83731.0,0.03162]
[1743229357432,0.550154,83732.0,83731.0,0.03262]
[1743229357726,0.910954,83732.0,83731.0,0.03262]
[1743229357922,0.910954,83732.0,83731.0,0.06372]
[1743229358827,0.92288105,83732.0,83731.0,0.07876946]
[1743229359527,0.92288105,83732.0,83731.0,0.11116946]
[1743229361329,0.92288105,83732.0,83731.0,0.10984946]
[1743229362130,0.64216,83732.0,83731.0,0.10984946]
[1743229362430,0.761634,83732.0,83731.0,0.10984946]
[1743229362617,0.481634,83732.0,83731.0,0.11112946]
[1743229362929,0.481634,83732.0,83731.0,0.1263888]
[1743229365123,0.120834,83732.0,83731.0,0.1263888]
[1743229365928,0.120834,83732.0,83731.0,0.11112946]
[1743229368220,0.120834,83732.0,83731.0,0.23060486]
[1743229372732,0.00136,83732.0,83731.0,0.48060486]
[1743229373038,0.119474,83732.0,83731.0,0.54033916]
[1743229373937,0.349474,83732.0,83731.0,0.54033916]
[1743229374242,0.120834,83732.0,83731.0,0.54033916]
[1743229374432,0.119474,83732.0,83731.0,0.54033916]
[1743229376637,0.4802645,83739.0,83738.0,0.1194654]
[1743229376841,0.5515445,83739.0,83738.0,0.1194654]
[1743229377230,0.5515445,83739.0,83738.0,0.1207454]
[1743229377438,0.5515445,83739.0,83738.0,0.1859454]
[1743229377637,0.5515445,83739.0,83738.0,0.20099486]
[1743229379345,0.1907445,83739.0,83738.0,0.20099486]
[1743229383644,0.1207445,83739.0,83738.0,0.20099486]
[1743229384935,0.00128,83739.0,83738.0,0.20099486]
[1743229385141,0.00128,83739.0,83738.0,0.48099486]
[1743229385344,0.11964175,83740.0,83739.0,0.119464]
[1743229385538,0.11964175,83740.0,83739.0,0.465744]
[1743229385845,0.00017915,83740.0,83739.0,0.52867614]
[1743229386546,0.12064175,83740.0,83739.0,0.52867614]
[1743229386940,0.22064175,83740.0,83739.0,0.52867614]
[1743229387138,0.38292175,83740.0,83739.0,0.24867614]
[1743229387446,0.23292175,83740.0,83739.0,0.24867614]
[1743229387639,0.12292175,83740.0,83739.0,0.24867614]
[1743229387840,0.12292175,83740.0,83739.0,0.23329346]
[1743229388949,0.23292175,83740.0,83739.0,0.218244]
[1743229389245,0.12292175,83740.0,83739.0,0.218244]
[1743229391750,0.12292175,83740.0,83739.0,0.43288241]
[1743229392849,0.15342175,83740.0,83739.0,0.43288241]
[1743229394152,0.35342175,83740.0,83739.0,0.43288241]
[1743229394342,0.26342175,83740.0,83739.0,0.43288241]
[1743229394544,0.15342175,83740.0,83739.0,0.43288241]
[1743229396756,0.25342175,83740.0,83739.0,0.36738241]
[1743229397054,0.40342175,83740.0,83739.0,0.36738241]
[1743229397242,0.15342175,83740.0,83739.0,0.36738241]
[1743229397439,0.39342175,83740.0,83739.0,0.36738241]
[1743229397642,0.38342175,83740.0,83739.0,0.36738241]
[1743229397947,0.15342175,83740.0,83739.0,0.36738241]
[1743229398147,0.42342175,83740.0,83739.0,0.36738241]
[1743229398544,0.41342175,83740.0,83739.0,0.36738241]
[1743229398854,0.15342175,83740.0,83739.0,0.36738241]
[1743229399954,0.25342175,83740.0,83739.0,0.36738241]
[1743229400151,0.15342175,83740.0,83739.0,0.36738241]
[1743229400352,0.26342175,83740.0,83739.0,0.36738241]
[1743229400552,0.15342175,83740.0,83739.0,0.36738241]
[1743229401254,0.37342175,83740.0,83739.0,0.152744]
[1743229401555,0.15342175,83740.0,83739.0,0.152744]
[1743229403147,0.25342175,83740.0,83739.0,0.152744]
[1743229403350,0.37342175,83740.0,83739.0,0.152744]
[1743229403548,0.15342175,83740.0,83739.0,0.152744]
[1743229404259,0.42342175,83740.0,83739.0,0.152744]
[1743229404464,0.25342175,83740.0,83739.0,0.152744]
[1743229404658,0.15342175,83740.0,83739.0,0.152744]
[1743229404950,0.38342175,83740.0,83739.0,0.152744]
[1743229405458,0.15342175,83740.0,83739.0,0.152744]
[1743229407050,0.39342175,83740.0,83739.0,0.152744]
[1743229407353,0.43342175,83740.0,83739.0,0.152744]
[1743229407659,0.79422175,83740.0,83739.0,0.03328]
[1743229409063,0.79422175,83740.0,83739.0,0.00128]
[1743229409450,0.1194683,83736.0,83735.0,0.0319]
[1743229409651,0.40006831,83736.0,83735.0,0.03318]
[1743229410343,0.18286831,83736.0,83735.0,0.03318]
[1743229410544,0.43286831,83736.0,83735.0,0.03318]
[1743229410759,0.19483051,83736.0,83735.0,0.03318]
[1743229411059,0.18286831,83736.0,83735.0,0.6034497]
[1743229411251,0.1822683,83736.0,83735.0,0.6647497]
[1743229411448,0.1835483,83736.0,83735.0,0.6647497]
[1743229412159,0.1835483,83736.0,83735.0,0.3039497]
[1743229412341,0.1517483,83736.0,83735.0,0.3039497]
[1743229413155,0.1517483,83736.0,83735.0,0.51886826]
[1743229416753,0.1517483,83736.0,83735.0,0.3039497]
[1743229422750,0.03228,83736.0,83735.0,0.3039497]
[1743229422955,0.11964175,83740.0,83739.0,0.119464]
[1743229423156,0.12092175,83740.0,83739.0,0.120744]
[1743229423551,0.12092175,83740.0,83739.0,0.182944]
[1743229424164,0.12192175,83740.0,83739.0,0.1947435]
[1743229425267,0.12292175,83740.0,83739.0,0.1947435]
[1743229427651,0.12292175,83740.0,83739.0,0.48126223]
[1743229427852,0.00345915,83740.0,83739.0,0.48126223]
[1743229428667,0.12292175,83740.0,83739.0,0.48126223]
[1743229429857,0.00345915,83740.0,83739.0,0.48126223]
[1743229430258,0.15392175,83740.0,83739.0,0.48126223]
[1743229430967,0.15392175,83740.0,83739.0,0.46946273]
[1743229431265,0.15392175,83740.0,83739.0,0.182944]
[1743229431266,0.35392175,83740.0,83739.0,0.182944]
[1743229431459,0.38392175,83740.0,83739.0,0.182944]
[1743229431658,0.15392175,83740.0,83739.0,0.182944]
[1743229433452,0.37392175,83740.0,83739.0,0.182944]
[1743229433761,0.15392175,83740.0,83739.0,0.182944]
[1743229433967,0.41392175,83740.0,83739.0,0.182944]
[1743229434267,0.39392175,83740.0,83739.0,0.182944]
[1743229434464,0.15392175,83740.0,83739.0,0.182944]
[1743229434653,0.35392175,83740.0,83739.0,0.151744]
[1743229434857,0.15392175,83740.0,83739.0,0.151744]
[1743229437764,0.25392175,83740.0,83739.0,0.151744]
[1743229437959,0.15392175,83740.0,83739.0,0.151744]
[1743229438168,0.15392175,83740.0,83739.0,0.184644]
[1743229439364,0.15392175,83740.0,83739.0,0.151744]
[1743229439765,0.42392175,83740.0,83739.0,0.151744]
[1743229439961,0.39392175,83740.0,83739.0,0.151744]
[1743229440162,0.43392175,83740.0,83739.0,0.151744]
[1743229440364,0.15392175,83740.0,83739.0,0.151744]
[1743229440874,0.37392175,83740.0,83739.0,0.151744]
[1743229441058,0.36392175,83740.0,83739.0,0.151744]
[1743229441457,0.42392175,83740.0,83739.0,0.151744]
[1743229441662,0.15392175,83740.0,83739.0,0.151744]
[1743229441872,0.40392175,83740.0,83739.0,0.151744]
[1743229442061,0.15392175,83740.0,83739.0,0.151744]
[1743229442372,0.24392175,83740.0,83739.0,0.46913903]
[1743229442571,0.15392175,83740.0,83739.0,0.43823903]
[1743229442774,0.39392175,83740.0,83739.0,0.43823903]
[1743229442971,0.40392175,83740.0,83739.0,0.43823903]
[1743229443173,0.15392175,83740.0,83739.0,0.43823903]
[1743229443476,0.38392175,83740.0,83739.0,0.43823903]
[1743229443773,0.39392175,83740.0,83739.0,0.28777503]
[1743229443967,0.37392175,83740.0,83739.0,0.28777503]
[1743229444277,0.38392175,83740.0,83739.0,0.28777503]
[1743229444573,0.15392175,83740.0,83739.0,0.40723903]
[1743229444769,0.36392175,83740.0,83739.0,0.43733903]
[1743229444974,0.15392175,83740.0,83739.0,0.43733903]
[1743229445175,0.39392175,83740.0,83739.0,0.43733903]
[1743229445574,0.25392175,83740.0,83739.0,0.03138]
[1743229445775,0.39392175,83740.0,83739.0,0.03138]
[1743229448077,0.42632175,83740.0,83739.0,0.03138]
[1743229451579,0.42632175,83740.0,83739.0,0.150844]
[1743229453673,0.39392175,83740.0,83739.0,0.150844]
[1743229453876,0.27445915,83740.0,83739.0,0.150844]
[1743229454172,0.24345915,83740.0,83739.0,0.150844]
[1743229454372,0.36292175,83740.0,83739.0,0.150844]
[1743229454578,0.12292175,83740.0,83739.0,0.150844]
[1743229455282,0.00345915,83740.0,83739.0,0.41275961]
[1743229455475,0.00217915,83740.0,83739.0,0.41275961]
[1743229455779,0.00217915,83740.0,83739.0,0.46068294]
[1743229455980,0.00345915,83740.0,83739.0,0.46068294]
[1743229456288,0.00345915,83740.0,83739.0,0.50524467]
[1743229456480,0.00217915,83740.0,83739.0,0.45732134]
[1743229456988,0.00217915,83740.0,83739.0,0.50524475]
[1743229457684,0.10696978,83748.0,83747.0,0.1194526]
[1743229457879,0.10832978,83748.0,83747.0,0.7316126]
[1743229458081,0.10191063,83748.0,83747.0,0.7316126]
[1743229458577,0.10191063,83748.0,83747.0,0.7949126]
[1743229458972,0.10491063,83748.0,83747.0,0.7949126]
[1743229459987,0.10791063,83748.0,83747.0,0.7949126]
[1743229460872,0.10791063,83748.0,83747.0,0.83957089]
[1743229461686,0.006,83748.0,83747.0,0.83957089]
[1743229462292,0.006,83748.0,83747.0,0.88744086]
[1743229462484,0.00017915,83756.0,83755.0,0.1194412]
[1743229462683,0.00017915,83756.0,83755.0,0.8476012]
[1743229463285,0.00017915,83756.0,83755.0,0.9092012]
[1743229464393,0.00017915,83756.0,83755.0,0.92440279]
[1743229464593,0.00417915,83756.0,83755.0,0.93318959]
[1743229464793,0.00817915,83756.0,83755.0,0.93318959]
[1743229464989,0.00817915,83756.0,83755.0,0.81714959]
[1743229465190,0.00817915,83756.0,83755.0,0.93326959]
[1743229465393,0.00817915,83756.0,83755.0,0.81714959]
[1743229465580,0.00817915,83756.0,83755.0,0.93328855]
[1743229465786,0.0326,83758.0,83757.0,0.1194383]
[1743229466085,0.0326,83758.0,83757.0,0.3607183]
[1743229466497,0.0326,83758.0,83757.0,0.4235183]
[1743229466698,0.0326,83758.0,83757.0,0.43865885]
[1743229467590,0.0376,83758.0,83757.0,0.43865885]
[1743229467783,0.005,83758.0,83757.0,0.43865885]
[1743229467990,0.009,83758.0,83757.0,0.43865885]
[1743229468192,0.009,83758.0,83757.0,0.4235183]
[1743229473492,0.1284369,83758.0,83757.0,0.4235183]
[1743229473689,0.1297169,83758.0,83757.0,0.4235183]
[1743229474598,0.1943169,83758.0,83757.0,0.4235183]
[1743229476004,0.1943169,83758.0,83757.0,0.5395183]
[1743229476997,0.1943169,83758.0,83757.0,0.55449516]
[1743229477406,0.1930369,83758.0,83757.0,0.55449516]
[1743229478102,0.1943569,83758.0,83757.0,0.55449516]
[1743229478305,0.1943569,83758.0,83757.0,0.91529516]
[1743229478498,0.1930369,83758.0,83757.0,0.91529516]
[1743229478700,0.1930369,83758.0,83757.0,0.56971745]
[1743229478900,0.1943569,83758.0,83757.0,0.93051745]
[1743229479101,0.1930369,83758.0,83757.0,0.93051745]
[1743229479600,0.1930369,83758.0,83757.0,0.55449516]
[1743229479802,0.1943569,83758.0,83757.0,0.55449516]
[1743229480209,0.1943569,83758.0,83757.0,0.52269516]
[1743229480705,0.4243569,83758.0,83757.0,0.53799135]
[1743229480899,0.1943569,83758.0,83757.0,0.53799135]
[1743229481101,0.1930369,83758.0,83757.0,0.53799135]
[1743229482300,0.1930369,83758.0,83757.0,0.32939135]
[1743229482498,0.1943569,83758.0,83757.0,0.32939135]
[1743229483702,0.1943569,83758.0,83757.0,0.29799135]
[1743229485110,0.03759385,83758.0,83757.0,0.29799135]
[1743229485409,0.15571075,83758.0,83757.0,0.29799135]
[1743229486299,0.15571075,83758.0,83757.0,0.28301449]
[1743229486702,0.15571075,83758.0,83757.0,0.64381449]
[1743229487598,0.15699075,83758.0,83757.0,0.64381449]
[1743229487804,0.15571075,83758.0,83757.0,0.64381449]
[1743229488315,0.15699075,83758.0,83757.0,0.64381449]
[1743229489404,0.00128,83758.0,83757.0,0.64381449]
[1743229489605,0.1495318,83762.0,83761.0,0.1194326]
[1743229489805,0.1508118,83762.0,83761.0,0.13600879]
[1743229490307,0.1508118,83762.0,83761.0,0.14821669]
[1743229490514,0.3908118,83762.0,83761.0,0.21151669]
[1743229490916,0.3958118,83762.0,83761.0,0.21151669]
[1743229491115,0.27738,83762.0,83761.0,0.21151669]
[1743229491622,0.24728,83762.0,83761.0,0.21151669]
[1743229492522,0.27968,83762.0,83761.0,0.21151669]
[1743229492710,0.27968,83762.0,83761.0,0.19930879]
[1743229493716,0.00728,83762.0,83761.0,0.19930879]
[1743229493914,0.006,83762.0,83761.0,0.19930879]
[1743229494214,0.03972,83762.0,83761.0,0.2114969]
[1743229494622,0.00732,83762.0,83761.0,0.2114969]
[1743229494913,0.00732,83762.0,83761.0,0.23678855]
[1743229494914,0.006,83762.0,83761.0,0.23678855]
[1743229495115,0.00017915,83766.0,83765.0,0.1194269]
[1743229495417,0.00145915,83766.0,83765.0,0.16140723]
[1743229495809,0.12088465,83766.0,83765.0,0.16140723]
[1743229496009,0.12088465,83766.0,83765.0,0.26829523]
[1743229496811,0.12188465,83766.0,83765.0,0.26829523]
[1743229497921,0.12288465,83766.0,83765.0,0.26829523]
[1743229498713,0.12288465,83766.0,83765.0,0.24300358]
[1743229498919,0.12188465,83766.0,83765.0,0.52951103]
[1743229499120,0.12060465,83766.0,83765.0,0.52951103]
[1743229499320,0.11960465,83766.0,83765.0,0.52951103]
[1743229499735,0.11960465,83766.0,83765.0,0.52988216]
[1743229500122,0.11960465,83766.0,83765.0,0.51410235]
[1743229500322,0.11960465,83766.0,83765.0,0.89067843]
[1743229500725,0.00017915,83766.0,83765.0,0.89067843]
[1743229500924,0.64564874,83798.0,83773.0,0.1194155]
[1743229501223,0.18377943,83774.0,83773.0,0.64572411]
[1743229501430,0.66399353,83774.0,83773.0,0.06502382]
[1743229501626,0.67584743,83774.0,83773.0,0.01579521]
[1743229501819,0.67584743,83774.0,83773.0,0.0565126]
[1743229502313,0.70624743,83774.0,83773.0,0.0565126]
[1743229502514,0.70724743,83774.0,83773.0,0.0565126]
[1743229502832,0.70724743,83774.0,83773.0,0.03108321]
[1743229503020,0.70724743,83774.0,83773.0,0.03061381]
[1743229503021,0.564828,83774.0,83773.0,0.03061381]
[1743229503726,0.564828,83774.0,83773.0,0.01532581]
[1743229505329,0.563828,83774.0,83773.0,0.01532581]
[1743229505524,0.564828,83774.0,83773.0,0.01532581]
[1743229506233,0.564828,83774.0,83773.0,0.03053341]
[1743229506729,0.564828,83774.0,83773.0,0.15030701]
[1743229506730,0.1217741,83774.0,83773.0,0.15030701]
[1743229506928,0.1217741,83774.0,83773.0,0.17693662]
[1743229507245,0.26419353,83774.0,83773.0,0.17693662]
[1743229507427,0.26419353,83774.0,83773.0,0.22297415]
[1743229507733,0.22587313,83774.0,83773.0,0.25557415]
[1743229507938,0.14341943,83774.0,83773.0,0.25557415]
[1743229508228,0.14341943,83774.0,83773.0,0.22130422]
[1743229508736,0.14341943,83774.0,83773.0,0.22166597]
[1743229511024,0.001,83774.0,83773.0,0.22166597]
[1743229511527,0.00017915,83782.0,83781.0,0.1194041]
[1743229511831,0.00017915,83782.0,83781.0,0.64071937]
[1743229512533,0.00017915,83782.0,83781.0,0.76563472]
[1743229513937,0.00017915,83782.0,83781.0,0.69355296]
[1743229514538,0.00017915,83782.0,83781.0,0.69387296]
[1743229514838,0.00017915,83782.0,83781.0,0.57611296]
[1743229515435,0.18118185,83782.0,83781.0,0.45670886]
[1743229515634,0.28118185,83782.0,83781.0,0.09590886]
[1743229515831,0.28118185,83782.0,83781.0,0.06410886]
[1743229516031,0.28118185,83782.0,83781.0,0.03280886]
[1743229516335,0.28118185,83782.0,83781.0,0.03112886]
[1743229517429,0.28118185,83782.0,83781.0,0.01592126]
[1743229517827,0.28118185,83782.0,83781.0,0.01760126]
[1743229518042,0.29296107,83782.0,83781.0,0.01760126]
[1743229518339,0.29296107,83782.0,83781.0,0.00168]
[1743229519543,0.29296107,83782.0,83781.0,0.1210841]
[1743229519738,0.29296107,83782.0,83781.0,0.00168]
[1743229520442,0.29296107,83782.0,83781.0,0.03224021]
[1743229520741,0.29296107,83782.0,83781.0,0.03056021]
[1743229521132,0.29296107,83782.0,83781.0,0.06346021]
[1743229521829,0.29296107,83782.0,83781.0,0.06345985]
[1743229522440,0.29296107,83782.0,83781.0,0.06517985]
[1743229522844,0.28118185,83782.0,83781.0,0.18458395]
[1743229523040,0.28118185,83782.0,83781.0,0.06517985]
[1743229523440,0.28118185,83782.0,83781.0,0.06345985]
[1743229523641,0.28118185,83782.0,83781.0,0.06513985]
[1743229524242,0.28118185,83782.0,83781.0,0.05010894]
[1743229525132,0.28118185,83782.0,83781.0,0.01720894]
[1743229525336,0.1194127,83775.0,83774.0,0.0331]
[1743229525537,0.2394127,83775.0,83774.0,0.0501978]
[1743229525739,0.2394127,83775.0,83774.0,0.0170978]
[1743229525946,0.3032127,83775.0,83774.0,0.0170978]
[1743229528046,0.6640127,83775.0,83774.0,0.0170978]
[1743229531143,0.6640127,83775.0,83774.0,0.0154178]
[1743229533247,0.1194184,83771.0,83770.0,0.0331]
[1743229533451,0.3894184,83771.0,83770.0,0.05005744]
[1743229533651,0.3894184,83771.0,83770.0,0.01527744]
[1743229534046,0.1194226,83768.0,83767.0,0.21434314]
[1743229534250,0.3894226,83768.0,83767.0,0.21602314]
[1743229534750,0.4538226,83768.0,83767.0,0.21602314]
[1743229535051,0.4538226,83768.0,83767.0,0.23124848]
[1743229536739,0.4538226,83768.0,83767.0,0.01690534]
[1743229536942,0.4538226,83768.0,83767.0,0.01522534]
[1743229537553,0.4538226,83768.0,83767.0,0.01690534]
[1743229538449,0.8146226,83768.0,83767.0,0.01690534]
[1743229538755,0.8146226,83768.0,83767.0,0.01522534]
[1743229542955,0.1194255,83766.0,83765.0,0.0311]
[1743229543145,0.3994255,83766.0,83765.0,0.0311]
[1743229544160,0.3994255,83766.0,83765.0,0.04634011]
[1743229544658,0.3994255,83766.0,83765.0,0.04634443]
[1743229548462,0.3994255,83766.0,83765.0,0.0463954]
[1743229549357,1.1210255,83766.0,83765.0,0.0463954]
[1743229551158,1.2383055,83766.0,83765.0,0.0776954]
[1743229552063,1.2383055,83766.0,83765.0,0.0624]
[1743229553053,1.2383055,83766.0,83765.0,0.04632302]
[1743229553258,1.2383055,83766.0,83757.0,0.00017915]
[1743229553259,0.0597169,83761.0,83757.0,0.00017915]
[1743229553458,0.4802369,83758.0,83757.0,0.00189915]
[1743229553666,0.1194455,83752.0,83751.0,0.28579086]
[1743229553863,0.51796551,83752.0,83751.0,0.28695086]
[1743229554265,0.58206551,83752.0,83751.0,0.28695086]
[1743229554977,0.58106551,83752.0,83751.0,0.28695086]
[1743229555864,0.58106551,83752.0,83751.0,0.28995086]
[1743229556074,0.58106551,83752.0,83751.0,0.29195086]
[1743229556272,0.94186551,83752.0,83751.0,0.29195086]
[1743229557371,0.9540268,83752.0,83751.0,0.29195086]
[1743229559784,0.9540268,83752.0,83751.0,0.00616]
[1743229559989,0.9540268,83752.0,83751.0,0.005]
[1743229567979,0.9534668,83752.0,83751.0,0.005]
[1743229570391,0.8367468,83752.0,83751.0,0.005]
[1743229570585,0.9533468,83752.0,83751.0,0.005]
[1743229576192,0.1194512,83748.0,83747.0,0.0331]
[1743229576404,0.1194626,83740.0,83739.0,0.0333]
[1743229576694,0.1194726,83733.0,83732.0,0.033]
[1743229576899,0.38071261,83733.0,83732.0,0.06746]
[1743229577492,0.44331261,83733.0,83732.0,0.06746]
[1743229577902,0.44331261,83733.0,83732.0,0.35325086]
[1743229578299,0.41171261,83733.0,83732.0,0.35625086]
[1743229578892,0.42368853,83733.0,83732.0,0.35625086]
[1743229579894,0.42368853,83733.0,83732.0,0.35725086]
[1743229583501,0.42368853,83733.0,83732.0,0.07146]
[1743229583701,0.42368853,83733.0,83732.0,0.0703]
[1743229593208,0.42368853,83733.0,83732.0,0.0373]
[1743229594015,0.45638853,83733.0,83732.0,0.0373]
[1743229598715,0.53960853,83733.0,83732.0,0.0373]
[1743229598911,0.42368853,83733.0,83732.0,0.0373]
[1743229599107,0.13268853,83733.0,83732.0,0.517574]
[1743229599312,0.12071261,83733.0,83732.0,0.407934]
[1743229599611,0.12071261,83733.0,83732.0,0.28846]
[1743229600414,0.12071261,83733.0,83732.0,0.31996]
[1743229601319,0.12071261,83733.0,83732.0,0.33521212]
[1743229602515,0.12071261,83733.0,83732.0,0.31996]
[1743229602911,0.21071261,83733.0,83732.0,0.31996]
[1743229605017,0.12071261,83733.0,83732.0,0.31996]
[1743229607423,0.12071261,83733.0,83732.0,0.439434]
[1743229610825,0.00124001,83733.0,83732.0,0.439434]
[1743229611425,0.10670156,83738.0,83737.0,0.1194669]
[1743229611623,0.30736797,83738.0,83737.0,0.3706669]
[1743229612222,0.30736797,83738.0,83737.0,0.4340669]
[1743229612818,0.30736797,83738.0,83737.0,0.4350669]
[1743229614225,0.20066641,83738.0,83737.0,0.4350669]
[1743229616133,0.12066641,83738.0,83737.0,0.4350669]
[1743229617328,0.12066641,83738.0,83737.0,0.45039332]
[1743229618339,0.1206264,83738.0,83737.0,0.45039326]
[1743229619127,0.1206264,83738.0,83737.0,0.46227247]
[1743229619334,0.1194664,83738.0,83737.0,0.46227247]
[1743229620829,0.1194664,83738.0,83737.0,0.45039326]
[1743229621038,0.1206264,83738.0,83737.0,0.45039326]
[1743229621540,0.2306264,83738.0,83737.0,0.45039326]
[1743229622331,0.1206264,83738.0,83737.0,0.45039326]
[1743229622526,0.2306264,83738.0,83737.0,0.4350669]
[1743229622730,0.1206264,83738.0,83737.0,0.4350669]
[1743229623241,0.2306264,83738.0,83737.0,0.4350669]
[1743229624535,0.2306264,83738.0,83737.0,0.1850669]
[1743229624739,0.1206264,83738.0,83737.0,0.1850669]
[1743229625040,0.3306264,83738.0,83737.0,0.1850669]
[1743229625225,0.1206264,83738.0,83737.0,0.1850669]
[1743229625430,0.4127264,83738.0,83737.0,0.1850669]
[1743229626045,0.1827264,83738.0,83737.0,0.0022]
[1743229626543,0.2927264,83738.0,83737.0,0.0022]
[1743229629327,0.2927264,83738.0,83737.0,0.00216]
[1743229631343,0.119474,83732.0,83731.0,0.28579086]
[1743229631547,0.721074,83732.0,83731.0,0.28659086]
[1743229632136,0.785774,83732.0,83731.0,0.28659086]
[1743229632535,0.785774,83732.0,83731.0,0.28959086]
[1743229632939,0.785774,83732.0,83731.0,0.29159086]
[1743229633748,0.785774,83732.0,83731.0,0.0058]
[1743229634046,0.785774,83732.0,83731.0,0.005]
[1743229635442,0.785774,83732.0,83731.0,0.0202859]
[1743229636339,0.119484,83725.0,83721.0,0.28579086]
[1743229636539,0.751084,83725.0,83724.0,0.0162629]
[1743229637155,0.843884,83725.0,83724.0,0.0162629]
[1743229637453,0.843884,83725.0,83724.0,0.00317904]
[1743229638651,0.85566986,83725.0,83724.0,0.00717904]
[1743229639439,0.85566986,83725.0,83724.0,0.00417904]
[1743229640249,0.85566986,83725.0,83724.0,0.00117904]
[1743229643856,0.85566986,83725.0,83724.0,0.0162762]
[1743229646958,0.85866986,83725.0,83724.0,0.0162762]
[1743229647545,0.86066986,83725.0,83724.0,0.0152762]
[1743229648045,0.82906986,83725.0,83724.0,0.0152762]
[1743229648449,0.82906986,83725.0,83724.0,0.0306735]
[1743229649857,0.86186986,83725.0,83724.0,0.0306735]
[1743229651450,0.82906986,83725.0,83724.0,0.0306735]
[1743229651654,0.82906986,83725.0,83724.0,0.0614735]
[1743229658061,0.76786986,83725.0,83724.0,0.0614735]
[1743229662864,0.76786986,83725.0,83724.0,0.04637634]
[1743229664672,0.40706986,83725.0,83724.0,0.04637634]
[1743229664876,0.40706986,83725.0,83724.0,0.04725634]
[1743229665576,0.76786986,83725.0,83724.0,0.04725634]
[1743229667381,0.76786986,83725.0,83724.0,0.04637634]
[1743229667564,0.76786986,83725.0,83724.0,0.04717634]
[1743229667768,0.76786986,83725.0,83724.0,0.04637634]
[1743229669674,0.87489248,83725.0,83724.0,0.04717634]
[1743229673185,0.76786986,83725.0,83724.0,0.04749023]
[1743229674175,0.76786986,83725.0,83724.0,0.07779023]
[1743229675879,0.756084,83725.0,83724.0,0.07779023]
[1743229676183,0.76828917,83725.0,83724.0,0.29277765]
[1743229676378,0.76828917,83725.0,83724.0,0.32567765]
[1743229676578,0.83168917,83725.0,83724.0,0.32567765]
[1743229681187,0.83168917,83725.0,83724.0,0.23167765]